bitfinex-derivatives/quotes_ETHF0:USTF0_20251012
["timestamp","ask_amount","ask_price","bid_price","bid_amount"]
[1760312108907,0.5689,4139.8,4139.6,0.43442]
[1760312109107,0.2147,4141.5,4139.9,0.43439]
[1760312109108,0.5689,4140.3,4139.9,0.43439]
[1760312109311,0.5689,4140.3,4139.8,0.4344]
[1760312109509,3.64212,4140.7,4139.9,0.4344]
[1760312109712,0.5689,4140.1,4139.7,3.64221]
[1760312109910,3.13526887,4140.2,4139.9,0.4344]
[1760312110113,3.2078,4140.7,4140.0,0.43438]
[1760312110305,3.64212,4140.7,4140.0,0.43438]
[1760312110499,3.20504692,4140.3,4140.0,0.43438]
[1760312110704,3.20504692,4140.3,4139.5,0.00255556]
[1760312110705,0.43442,4139.7,4139.5,0.00255556]
[1760312110913,0.5689,4139.6,4139.5,0.00255556]
[1760312111104,3.75445158,4139.6,4139.5,0.00255556]
[1760312111304,0.5689,4138.7,4138.1,3.2078]
[1760312111505,0.2147,4139.0,4138.2,0.43457]
[1760312111709,0.5689,4138.9,4138.1,3.2078]
[1760312111909,3.18555158,4138.9,4138.4,0.43455]
[1760312112313,3.18792181,4138.9,4138.4,0.43632386]
[1760312112507,0.5689,4138.8,4138.5,0.43454]
[1760312113211,0.00237023,4138.9,4138.5,0.43454]
[1760312113612,0.00237023,4138.9,4138.6,3.2078]
[1760312114111,0.00237023,4138.9,4138.8,0.5467]
[1760312114318,0.00237023,4138.9,4138.6,3.2078]
[1760312114512,0.00237023,4138.9,4138.7,0.98122]
[1760312114819,0.5689,4138.8,4138.6,3.64232]
[1760312115014,0.00237023,4138.9,4138.6,3.64232]
[1760312115315,0.5689,4138.8,4138.6,3.64232]
[1760312115915,0.57127023,4138.9,4138.8,0.43451]
[1760312116307,0.00237023,4138.9,4138.6,3.64233]
[1760312116511,0.5689,4138.8,4138.7,0.43452]
[1760312117012,0.00237023,4138.9,4138.6,3.2078]
[1760312117312,0.5689,4138.8,4138.6,3.2078]
[1760312117508,0.00237023,4138.9,4138.6,3.2078]
[1760312117708,0.00237023,4138.9,4138.4,0.00177386]
[1760312117709,0.43452,4138.8,4138.4,0.00177386]
[1760312117910,0.2147,4138.5,4138.4,0.00177386]
[1760312118108,0.7836,4138.5,4138.4,0.00177386]
[1760312118415,3.19808519,4138.8,4138.4,0.00177386]
[1760312118416,0.5689,4138.8,4138.4,0.00177386]
[1760312118611,0.00237023,4138.9,4138.5,0.5467]
[1760312118814,0.00237023,4138.9,4138.6,0.43453]
[1760312118815,0.5689,4138.8,4138.6,0.43453]
[1760312119019,0.00237023,4138.9,4138.7,0.5467]
[1760312119325,0.00237023,4138.9,4138.8,0.43451]
[1760312119511,0.57127023,4138.9,4138.8,0.43451]
[1760312121216,0.00237023,4138.9,4138.8,0.98121]
[1760312121521,3.64216,4140.3,4139.3,0.98115]
[1760312121722,0.5562,4140.2,4139.3,3.7545]
[1760312121914,0.5562,4140.1,4140.0,0.43438]
[1760312122420,0.5562,4140.0,4139.9,3.2078]
[1760312122624,0.7719,4140.0,4139.5,0.43443]
[1760312122818,0.5562,4139.9,4139.5,0.43443]
[1760312123022,0.65009,4140.0,4139.5,0.43443]
[1760312123313,0.5562,4139.9,4139.5,0.43443]
[1760312123520,0.5562,4139.9,4139.3,0.43446]
[1760312123713,0.5562,4139.9,4138.5,0.2337]
[1760312123714,0.5562,4139.2,4138.5,3.2078]
[1760312123918,0.5562,4139.2,4138.5,3.748]
[1760312124621,0.43447,4139.3,4138.7,0.43452]
[1760312124817,0.43447,4139.3,4138.5,3.748]
[1760312124818,0.5562,4139.2,4138.5,3.748]
[1760312125012,0.2157,4139.5,4139.4,0.43445]
[1760312125013,0.5562,4139.5,4139.4,0.43445]
[1760312125218,0.5562,4140.0,4139.6,0.43442]
[1760312125419,0.55819224,4140.1,4139.5,3.2078]
[1760312125616,0.5562,4139.9,4139.0,3.2078]
[1760312125820,0.43442,4139.7,4139.2,0.43447]
[1760312126021,0.5562,4139.6,4139.0,4.18248]
[1760312126218,0.5562,4140.0,4139.9,0.4344]
[1760312126421,0.5562,4140.0,4139.9,0.9746]
[1760312126621,0.5562,4140.0,4139.6,0.43442]
[1760312126933,0.5562,4139.9,4139.5,3.2078]
[1760312127125,0.00199224,4140.1,4140.0,0.43439]
[1760312127625,0.55819224,4140.1,4140.0,0.43439]
[1760312127825,0.55819224,4140.1,4139.5,3.4362]
[1760312127826,0.55819224,4140.1,4139.9,0.97459]
[1760312128022,0.00199224,4140.1,4140.0,0.5402]
[1760312128726,0.00199224,4140.1,4140.0,3.748]
[1760312129328,0.00199224,4140.1,4140.0,3.9764]
[1760312129623,3.2078,4140.8,4140.1,0.43438]
[1760312129830,3.2078,4140.8,4140.2,0.5402]
[1760312130029,3.2078,4140.8,4140.7,0.43431]
[1760312130229,3.2078,4140.8,4140.7,0.97451]
[1760312130524,3.2078,4140.8,4140.7,0.43431]
[1760312130830,3.76577513,4140.8,4140.7,0.43431]
[1760312131627,0.55797513,4140.8,4140.7,0.97451]
[1760312131825,0.00177513,4140.8,4140.7,0.97451]
[1760312133630,0.55797513,4140.8,4140.7,0.97451]
[1760312135731,0.00177513,4140.8,4140.7,0.97451]
[1760312137734,0.55797513,4140.8,4140.7,0.97451]
[1760312137925,0.55797513,4140.8,4140.7,0.43431]
[1760312138236,0.55797513,4140.8,4140.7,0.97451]
[1760312138437,0.00177513,4140.8,4140.7,0.97451]
[1760312140033,0.55797513,4140.8,4140.7,0.97451]
[1760312140332,0.55797513,4140.8,4140.5,3.2078]
[1760312140538,0.00177513,4140.8,4140.5,3.2078]
[1760312140835,0.5562,4140.1,4140.0,3.2078]
[1760312141538,0.5562,4140.1,4140.0,3.748]
[1760312142240,0.5562,4140.1,4140.0,3.2078]
[1760312143333,0.5562,4140.1,4139.7,0.43441]
[1760312143526,0.2157,4140.0,4139.7,0.43441]
[1760312143732,0.2157,4140.0,4139.5,3.2078]
[1760312143927,0.2157,4140.0,4139.0,0.2284]
[1760312143928,0.2249,4139.5,4139.0,1.71742173]
[1760312144127,0.7479,4139.0,4138.9,3.2078]
[1760312145134,0.7479,4139.0,4138.5,1.71742173]
[1760312145135,0.95751,4138.9,4138.4,0.00177386]
[1760312145440,0.7479,4138.5,4138.4,0.00177386]
[1760312145632,0.2249,4138.0,4137.2,4.92522173]
[1760312145833,3.86533408,4138.5,4137.9,0.5704]
[1760312146034,0.523,4137.9,4137.2,4.92522173]
[1760312146237,0.2249,4138.0,4137.2,5.35989173]
[1760312146434,0.523,4137.9,4137.8,3.2078]
[1760312146638,0.52550091,4137.9,4137.8,3.78034511]
[1760312147136,0.00250091,4137.9,4137.8,3.78034511]
[1760312147536,0.523,4139.5,4138.7,0.5704]
[1760312147739,0.523,4139.8,4139.5,0.43443]
[1760312147940,0.523,4139.8,4139.7,0.43441]
[1760312148536,0.52513901,4139.8,4139.7,0.43441]
[1760312148744,0.52513901,4139.8,4139.7,1.00481]
[1760312149336,0.2249,4139.5,4138.9,1.72543634]
[1760312149542,0.523,4139.4,4139.2,0.43446]
[1760312149746,0.2249,4139.5,4139.2,0.43446]
[1760312150143,0.523,4139.7,4139.4,3.2078]
[1760312150443,0.523,4139.7,4139.5,0.5704]
[1760312150644,0.00213901,4139.8,4139.5,0.5704]
[1760312150941,0.00213901,4139.8,4139.5,0.43443]
[1760312151243,0.523,4139.7,4139.6,0.43442]
[1760312151637,0.00213901,4139.8,4139.6,0.43442]
[1760312151838,0.00213901,4139.8,4139.7,0.5255]
[1760312152843,0.2249,4141.0,4140.6,0.5255]
[1760312153044,0.5524,4140.9,4140.3,3.2078]
[1760312153234,3.7602,4141.2,4140.9,0.43429]
[1760312153433,0.5524,4141.1,4140.9,0.95979]
[1760312153641,3.2078,4141.2,4140.9,0.95979]
[1760312153837,0.5524,4141.1,4141.0,0.43428]
[1760312154037,3.21005393,4141.2,4141.1,0.5255]
[1760312154944,0.00225393,4141.2,4141.1,0.5255]
[1760312155842,1.30498,4143.5,4141.1,0.5255]
[1760312155843,0.5524,4142.2,4141.2,0.5255]
[1760312156038,0.5524,4142.2,4141.1,1.08568]
[1760312156039,0.5524,4142.2,4142.0,0.43418]
[1760312156245,3.2078,4142.9,4141.9,0.5255]
[1760312156246,0.5524,4142.7,4142.1,0.43416]
[1760312156446,0.5524,4142.5,4142.1,0.43416]
[1760312156649,0.5524,4142.5,4142.3,0.95964]
[1760312156840,0.55411544,4142.5,4142.3,0.95964]
[1760312157144,0.00171544,4142.5,4142.4,0.5255]
[1760312160240,0.00171544,4142.5,4142.3,3.64194]
[1760312160241,0.5524,4142.4,4142.3,3.64194]
[1760312160441,0.5524,4142.4,4141.9,0.5255]
[1760312160645,0.43415,4142.3,4142.0,0.43417]
[1760312160845,0.5524,4142.2,4141.8,3.642]
[1760312161050,0.4342,4141.8,4141.3,3.2078]
[1760312161235,3.2078,4142.3,4141.7,0.5255]
[1760312161236,0.5524,4142.3,4141.7,0.5255]
[1760312161436,0.5524,4142.3,4142.0,3.7333]
[1760312161746,0.00171544,4142.5,4142.4,0.5255]
[1760312162137,0.55411544,4142.5,4142.4,0.5255]
[1760312162339,0.00171544,4142.5,4142.4,0.5255]
[1760312162940,3.7602,4143.4,4143.3,0.5255]
[1760312163242,44.0078,4143.4,4142.8,0.43409]
[1760312163448,0.98645,4143.3,4142.7,0.4341]
[1760312163748,0.98645,4143.3,4142.5,0.5255]
[1760312163944,0.98842174,4143.3,4142.5,0.5255]
[1760312164247,0.98842174,4143.3,4142.4,3.2078]
[1760312164248,0.5524,4142.8,4142.4,3.64193]
[1760312164442,0.43409,4142.9,4142.4,4.16743]
[1760312165040,0.43409,4142.9,4142.4,3.64193]
[1760312165240,0.43409,4142.9,4142.5,0.5255]
[1760312165641,1.20642,4142.5,4142.4,3.2078]
[1760312165844,3.07428813,4142.8,4140.4,0.1893412]
[1760312165845,0.5524,4142.4,4141.9,3.2078]
[1760312166146,4.1943,4142.8,4142.2,0.95965]
[1760312166543,0.7723,4142.0,4141.9,3.2078]
[1760312166940,0.5524,4142.0,4141.9,3.2078]
[1760312167342,3.6419,4142.8,4142.4,0.5255]
[1760312167544,3.6419,4142.8,4142.2,0.43416]
[1760312167742,0.5524,4142.6,4142.4,0.5255]
[1760312167941,0.5524,4142.6,4142.1,0.43416]
[1760312168141,3.2078,4142.8,4141.9,3.2078]
[1760312168142,0.2199,4142.5,4141.9,3.2078]
[1760312168343,0.2199,4142.5,4140.8,2.1758311]
[1760312168344,0.43419,4141.9,4141.4,3.2078]
[1760312168548,0.2199,4142.0,4140.9,0.52725561]
[1760312168549,0.5524,4141.2,4140.9,3.73505561]
[1760312168741,0.5524,4141.0,4140.9,3.20955561]
[1760312168953,0.7723,4141.0,4140.9,0.00175561]
[1760312169552,0.43437,4140.2,4139.4,4.16774]
[1760312169850,0.43436,4140.3,4139.6,0.43442]
[1760312170050,0.5524,4139.9,4139.5,0.5255]
[1760312170251,0.2199,4140.0,4139.4,3.2078]
[1760312170441,0.5524,4140.7,4140.1,0.5255]
[1760312170756,0.00277658,4140.6,4140.3,0.43435]
[1760312171048,0.00277658,4140.6,4140.5,1.17963]
[1760312171353,0.43416,4142.2,4141.6,0.43421]
[1760312172157,0.00272017,4142.2,4142.1,0.43416]
[1760312172650,0.00272017,4142.2,4142.1,0.95966]
[1760312173852,3.2078,4143.3,4142.8,0.43409]
[1760312174049,3.7602,4143.3,4142.8,0.43409]
[1760312174254,0.5524,4143.3,4142.7,3.2078]
[1760312174453,3.2078,4143.8,4143.4,0.43403]
[1760312174454,0.5524,4143.7,4143.4,0.43403]
[1760312174652,0.5524,4143.7,4143.5,0.5255]
[1760312174850,0.00173203,4143.7,4143.6,0.43401]
[1760312175053,0.00173203,4143.7,4143.6,0.95951]
[1760312175656,0.98641,4143.6,4143.5,0.0028369]
[1760312176359,41.78641,4143.6,4143.5,0.0028369]
[1760312176854,41.78641,4143.6,4141.9,1.723878]
[1760312176855,0.43412,4142.6,4142.1,3.2078]
[1760312177057,3.2078,4143.2,4142.2,0.5255]
[1760312177562,3.2078,4143.2,4142.8,0.5255]
[1760312177757,3.2078,4143.2,4142.6,3.2078]
[1760312177758,0.5524,4143.1,4142.6,3.2078]
[1760312178056,3.7602,4143.2,4142.6,3.64440663]
[1760312178255,0.5524,4143.4,4143.1,3.2078]
[1760312178560,0.65393,4143.5,4143.1,3.2078]
[1760312178561,0.2199,4143.5,4143.1,3.2078]
[1760312178853,0.5524,4143.5,4143.1,3.2078]
[1760312179258,0.5524,4143.5,4143.1,3.64186]
[1760312179455,44.54839714,4143.6,4143.1,3.64186]
[1760312179768,44.98241714,4143.6,4143.1,3.2078]
[1760312179961,44.54839714,4143.6,4143.1,3.2078]
[1760312180160,0.98643,4143.5,4142.8,0.43408]
[1760312180765,0.5524,4143.4,4143.0,0.95957]
[1760312180958,0.5524,4143.5,4143.0,0.43407]
[1760312181264,0.7723,4143.5,4142.6,0.43660663]
[1760312181666,0.5554,4143.2,4142.8,0.43409]
[1760312181860,0.2199,4143.5,4142.6,0.00249663]
[1760312182059,0.5554,4142.8,4142.6,0.00249663]
[1760312182358,0.43409,4142.9,4142.6,0.00249663]
[1760312182558,0.5554,4142.8,4142.6,0.00249663]
[1760312182756,0.5554,4143.0,4142.6,0.96140663]
[1760312182954,0.5554,4142.8,4142.6,0.52729663]
[1760312183659,40.8,4142.9,4142.7,0.43409]
[1760312183965,40.8,4142.9,4142.7,0.95889]
[1760312184460,40.8,4142.9,4142.6,0.00249663]
[1760312184653,0.5554,4142.7,4142.6,0.00249663]
[1760312184860,3.2078,4142.7,4142.0,3.2078]
[1760312185060,0.5554,4142.1,4142.0,3.2078]
[1760312185262,0.5554,4142.5,4142.1,0.5248]
[1760312185451,40.8,4142.9,4142.5,0.43412]
[1760312185659,40.8,4142.9,4142.6,0.5248]
[1760312185855,0.5554,4142.8,4142.6,0.00289479]
[1760312187068,40.8,4142.9,4142.8,0.5248]
[1760312187365,40.8,4142.9,4142.6,0.00289479]
[1760312187366,0.5554,4142.7,4142.6,0.00289479]
[1760312187560,3.7632,4142.7,4142.6,0.00289479]
[1760312187969,0.43418,4142.0,4141.7,1.723878]
[1760312188261,0.43418,4142.0,4141.5,3.64202]
[1760312188262,0.98962,4141.6,4141.5,3.2078]
[1760312188467,0.98962,4141.6,4140.4,1.723878]
[1760312188468,0.2167,4141.0,4140.4,1.723878]
[1760312188665,0.5554,4140.1,4140.0,1.723878]
[1760312188856,0.5554,4139.9,4139.1,4.931678]
[1760312189057,0.5554,4139.4,4139.1,0.00249524]
[1760312189261,0.43442,4139.7,4139.1,0.00249524]
[1760312189468,0.43446,4139.3,4139.1,0.00249524]
[1760312189764,0.2167,4139.5,4139.1,0.00249524]
[1760312189765,0.5554,4139.2,4139.1,0.00249524]
[1760312190869,40.8,4139.8,4139.1,3.21029524]
[1760312191062,0.5407,4140.1,4139.6,3.64222]
[1760312191264,0.5407,4141.1,4139.8,0.96821]
[1760312191660,40.8,4141.0,4139.8,0.96821]
[1760312192066,0.5407,4140.7,4139.8,0.96821]
[1760312192262,0.5407,4140.3,4139.8,0.96821]
[1760312192467,41.0055,4141.0,4140.2,0.43436]
[1760312192468,40.8,4141.0,4140.2,0.43436]
[1760312192663,40.8,4141.0,4139.5,0.206]
[1760312192664,41.0055,4141.0,4140.1,3.2078]
[1760312192873,0.5407,4140.8,4140.1,3.2078]
[1760312193373,0.5407,4140.8,4140.2,0.5338]
[1760312193567,0.54361462,4140.8,4140.4,0.43434]
[1760312193765,0.00291462,4140.8,4140.4,0.43434]
[1760312194063,0.5407,4140.7,4140.4,0.43434]
[1760312194365,0.00291462,4140.8,4140.4,0.43434]
[1760312194675,0.43432,4140.6,4140.1,3.64217]
[1760312194870,0.5407,4140.5,4140.1,3.64217]
[1760312195170,0.54361462,4140.8,4140.4,0.5338]
[1760312195367,0.00291462,4140.8,4140.7,4.17591]
[1760312195566,0.00291462,4140.8,4140.7,3.7416]
[1760312195967,40.8,4141.9,4140.7,3.2078]
[1760312196168,0.5407,4141.8,4141.2,3.2078]
[1760312196464,0.2055,4141.5,4140.7,3.2078]
[1760312196771,0.5407,4141.4,4141.1,0.43426]
[1760312197065,0.54339869,4141.4,4141.1,0.43426]
[1760312197468,0.00269869,4141.4,4141.3,0.5338]
[1760312197669,0.00269869,4141.4,4141.0,0.43428]
[1760312197870,0.54339869,4141.4,4141.1,0.43426]
[1760312198065,0.54339869,4141.4,4141.2,0.43425]
[1760312198272,0.00269869,4141.4,4141.3,0.5338]
[1760312198471,0.5407,4141.3,4140.7,3.7416]
[1760312198774,0.43693869,4141.4,4140.8,0.4343]
[1760312198971,0.54339869,4141.4,4141.2,0.43425]
[1760312199371,0.00269869,4141.4,4141.2,0.43425]
[1760312199577,0.00269869,4141.4,4140.8,0.5338]
[1760312199879,0.5407,4141.2,4140.8,0.5338]
[1760312200081,6.84119796,4141.3,4140.7,3.2078]
[1760312200274,0.5407,4141.2,4140.7,3.2078]
[1760312200681,0.5407,4140.8,4140.7,3.2078]
[1760312201073,0.43428,4141.1,4140.7,3.2078]
[1760312201374,0.97499,4141.0,4140.8,0.5338]
[1760312201577,0.975,4140.9,4140.7,3.2078]
[1760312201980,0.5407,4140.9,4140.7,3.7416]
[1760312202180,0.97498,4141.1,4140.8,0.5338]
[1760312203778,0.97498,4141.1,4140.8,0.9681]
[1760312204676,0.00269869,4141.4,4141.3,0.96805]
[1760312204882,0.00269869,4141.4,4141.3,4.17585]
[1760312206083,0.5323,4142.7,4142.4,0.43413]
[1760312206284,3.2078,4142.8,4142.7,0.5569]
[1760312206483,3.2078,4142.8,4142.0,3.2078]
[1760312206689,0.43415,4142.3,4142.0,3.2078]
[1760312206881,0.43415,4142.3,4141.1,2.1758311]
[1760312206882,0.5323,4142.4,4142.1,0.43416]
[1760312207183,0.5323,4142.3,4142.1,0.43728366]
[1760312207486,0.00197629,4142.4,4142.1,0.00312366]
[1760312207685,0.5323,4142.2,4142.1,0.00312366]
[1760312207881,0.2106,4141.5,4141.3,3.2078]
[1760312208096,0.96654,4141.4,4141.3,3.2078]
[1760312208382,0.43428,4141.1,4140.7,3.2078]
[1760312208582,0.43426,4141.3,4140.7,3.2078]
[1760312208789,0.43426,4141.3,4140.8,0.4343]
[1760312208980,0.43426,4141.3,4140.8,0.43603876]
[1760312209377,0.5323,4141.2,4140.8,0.43603876]
[1760312209795,40.8,4141.4,4140.9,0.5569]
[1760312209999,3.74839714,4142.3,4141.3,0.5569]
[1760312210000,0.43419,4141.9,4141.3,0.5569]
[1760312210298,0.43421,4141.7,4141.2,3.2078]
[1760312210496,40.8,4141.6,4141.2,3.64205]
[1760312210694,0.5323,4141.5,4141.2,3.64205]
[1760312210900,0.5323,4141.5,4141.2,4.19895]
[1760312211101,41.23422,4141.6,4141.2,4.19895]
[1760312211401,0.5323,4141.5,4141.2,4.19895]
[1760312211599,41.23422,4141.6,4141.2,4.19895]
[1760312211799,0.5151,4141.5,4141.2,4.19895]
[1760312212092,0.5151,4141.5,4141.2,3.64205]
[1760312212294,41.23422,4141.6,4141.2,3.64205]
[1760312212489,0.5151,4141.5,4141.2,3.64205]
[1760312212687,41.23422,4141.6,4141.2,3.64205]
[1760312212890,40.8,4141.6,4141.4,0.43424]
[1760312213096,3.7229,4142.3,4141.9,0.5041]
[1760312213294,0.5151,4142.1,4141.9,0.5041]
[1760312213696,0.5151,4142.0,4141.6,0.43422]
[1760312213892,0.5151,4142.0,4141.6,0.93832]
[1760312214093,0.43417,4142.1,4141.7,0.4342]
[1760312214293,0.5151,4142.0,4141.7,0.9383]
[1760312214597,0.5151,4141.9,4141.7,0.5041]
[1760312214792,0.5151,4141.9,4141.5,0.93833]
[1760312214993,0.43418,4142.0,4141.5,0.93833]
[1760312215193,0.5151,4141.9,4141.5,0.93833]
[1760312215397,40.8,4142.0,4141.3,1.723878]
[1760312215598,40.8,4142.0,4141.6,0.5041]
[1760312215797,41.0065,4142.0,4141.3,1.723878]
[1760312216002,0.5151,4141.1,4140.9,1.723878]
[1760312216198,0.5151,4141.4,4140.9,0.5041]
[1760312216402,0.43421,4141.7,4141.0,2.227978]
[1760312216702,3.2078,4141.8,4141.2,0.5041]
[1760312216703,0.43423,4141.5,4141.2,0.5041]
[1760312217091,0.5151,4141.2,4140.9,2.227978]
[1760312217299,40.8,4142.0,4141.7,0.5041]
[1760312217605,3.7229,4142.3,4141.0,1.3037]
[1760312217606,3.2078,4142.3,4142.2,0.5041]
[1760312217803,0.00197629,4142.4,4142.3,0.5041]
[1760312218596,0.5151,4142.3,4142.2,3.2078]
[1760312218794,0.5151,4142.3,4142.1,1.72739881]
[1760312219003,0.5151,4142.3,4142.1,2.23149881]
[1760312219202,0.5151,4142.2,4141.9,0.5041]
[1760312219999,0.43415,4142.3,4141.9,0.5041]
[1760312220401,0.43415,4142.3,4142.0,0.5041]
[1760312220604,0.5151,4142.2,4142.0,2.23149881]
[1760312220800,0.43415,4142.3,4142.0,0.5041]
[1760312221003,0.5151,4142.2,4142.0,0.5041]
[1760312221202,0.00197629,4142.4,4141.9,1.72739881]
[1760312221507,0.5151,4141.8,4141.7,1.72739881]
[1760312221704,0.7216,4141.5,4141.2,1.72739881]
[1760312221907,0.5151,4140.9,4140.8,0.00173876]
[1760312222101,41.3151,4140.9,4140.8,1.72913757]
[1760312222304,0.43427,4141.2,4140.8,0.50583876]
[1760312222507,0.5151,4141.9,4141.0,5.87619857]
[1760312222801,0.94934,4141.5,4141.1,1.73002857]
[1760312223003,40.8,4141.8,4141.1,1.73002857]
[1760312223209,0.64074,4141.5,4141.3,1.73002857]
[1760312223403,0.43429,4140.9,4140.8,0.00173876]
[1760312223600,0.94939,4140.9,4140.8,0.00173876]
[1760312223907,4.11511333,4140.9,4140.8,0.00173876]
[1760312224298,3.68082333,4140.9,4140.4,1.73002857]
[1760312224498,3.68082333,4140.9,4139.9,3.2078]
[1760312224499,7.16269714,4140.5,4139.9,3.2078]
[1760312224707,0.7216,4140.0,4139.9,3.2078]
[1760312224898,7.16269714,4140.5,4139.9,3.2078]
[1760312224899,0.5151,4140.3,4140.0,0.43439]
[1760312225204,40.8,4140.2,4139.9,3.2078]
[1760312225509,0.5151,4140.1,4139.9,3.64461606]
[1760312225804,0.7216,4140.0,4139.9,0.00242606]
[1760312226005,44.66459004,4140.0,4139.9,0.00242606]
[1760312226709,41.5216,4140.0,4139.9,0.00242606]
[1760312226909,44.71117056,4140.0,4139.9,0.00242606]
[1760312227204,44.71117056,4140.0,4137.7,1.08658]
[1760312227205,44.19607056,4140.0,4138.9,5.3836311]
[1760312227410,0.5151,4139.0,4138.9,3.2078]
[1760312228109,0.51736313,4139.0,4138.9,3.20959469]
[1760312228910,3.2078,4139.7,4138.9,3.71369469]
[1760312229097,40.8,4140.0,4139.4,3.2078]
[1760312229302,40.8,4140.0,4139.4,3.64225]
[1760312229508,40.8,4140.0,4139.6,0.43443]
[1760312229708,41.44089,4140.0,4139.4,3.64224]
[1760312229911,41.95599,4140.0,4139.5,0.43443]
[1760312230205,0.5151,4139.9,4139.7,0.43441]
[1760312230709,40.80203767,4140.0,4139.9,0.9385]
[1760312230906,0.00203767,4140.0,4139.9,4.1463]
[1760312231206,0.51713767,4140.0,4139.9,3.2078]
[1760312231403,44.08383156,4140.0,4138.9,3.20959469]
[1760312231703,0.5151,4139.2,4138.9,3.64409469]
[1760312231908,0.5151,4139.3,4138.9,3.20959469]
[1760312232109,0.94951,4139.8,4139.2,0.43447]
[1760312232296,0.43442,4139.7,4139.2,0.43447]
[1760312232501,0.5151,4139.4,4138.9,3.20959469]
[1760312232697,0.7216,4139.0,4138.9,3.20959469]
[1760312234105,0.7216,4139.0,4138.9,0.00179469]
[1760312235501,0.5151,4137.9,4137.8,3.2078]
[1760312235701,0.94971,4137.9,4137.3,0.43466]
[1760312236300,0.5151,4137.7,4137.3,0.43466]
[1760312236510,0.94973,4137.7,4137.3,0.00224948]
[1760312236705,0.5151,4137.6,4137.3,0.43690948]
[1760312236906,40.8,4137.8,4137.7,0.93873]
[1760312237107,40.8,4137.8,4137.7,4.14653]
[1760312237809,3.2078,4138.3,4137.8,0.43461]
[1760312238002,3.2078,4138.3,4137.7,3.7119]
[1760312238198,0.5151,4138.4,4138.2,3.2078]
[1760312238510,0.43456,4138.3,4138.2,3.2078]
[1760312238702,0.2065,4138.0,4137.6,0.43464]
[1760312238901,0.43461,4137.9,4137.5,3.2078]
[1760312239308,0.5151,4137.9,4137.7,0.43462]
[1760312239508,0.2065,4138.0,4137.6,0.43463]
[1760312239705,0.43461,4137.9,4137.5,3.2078]
[1760312240110,0.2065,4138.0,4137.5,3.2078]
[1760312240301,0.5151,4137.9,4137.5,3.2078]
[1760312240502,0.5151,4137.9,4137.5,3.64245]
[1760312241011,0.2065,4138.0,4137.5,3.64245]
[1760312241214,0.5151,4137.9,4137.5,3.64245]
[1760312241508,0.2065,4138.0,4137.5,3.64245]
[1760312241910,0.5103,4137.9,4137.8,0.43462]
[1760312242610,0.2065,4138.0,4137.7,0.43462]
[1760312242812,0.5103,4137.9,4137.7,0.43462]
[1760312243206,0.5103,4137.9,4137.8,0.43461]
[1760312243507,0.94491,4137.9,4137.5,3.2078]
[1760312243809,0.5103,4137.9,4137.5,3.64244]
[1760312244008,0.2065,4138.0,4137.5,3.2078]
[1760312244209,0.5103,4137.9,4137.5,3.2078]
[1760312244906,0.2065,4138.0,4137.5,3.2078]
[1760312245512,44.2143,4138.5,4137.9,0.4346]
[1760312245704,44.2143,4138.5,4138.0,0.43459]
[1760312245904,0.94486,4138.4,4138.1,0.43458]
[1760312246114,0.43456,4138.4,4138.1,0.43458]
[1760312246309,44.2143,4138.5,4138.3,0.43456]
[1760312246510,0.5103,4138.4,4138.3,0.43456]
[1760312246811,0.5103,4138.3,4137.9,0.4346]
[1760312247011,0.94487,4138.3,4137.9,0.4346]
[1760312247212,0.43459,4138.1,4137.5,3.2078]
[1760312247410,0.5103,4137.9,4137.5,3.64245]
[1760312247608,0.6433,4138.0,4137.6,0.43463]
[1760312247801,0.5103,4137.9,4137.7,0.43462]
[1760312248005,0.5103,4137.6,4137.5,3.2078]
[1760312248210,6.90017402,4137.9,4137.6,0.43464]
[1760312248410,0.5103,4137.9,4137.7,0.43462]
[1760312248712,0.5103,4137.8,4137.7,0.43462]
[1760312249710,0.2087,4138.0,4137.5,0.43464]
[1760312249920,0.2087,4138.0,4137.3,0.00224948]
[1760312249921,0.5103,4137.4,4137.3,0.00224948]
[1760312250308,47.61952749,4137.4,4137.3,0.00224948]
[1760312251611,0.5103,4136.9,4136.5,3.2078]
[1760312251920,0.2087,4137.0,4136.5,3.2078]
[1760312251921,0.5103,4136.7,4136.5,3.2078]
[1760312252111,0.5103,4135.9,4135.5,0.43485]
[1760312252517,0.51273284,4135.9,4135.5,0.43758488]
[1760312252719,0.5103,4135.7,4135.5,0.00273488]
[1760312253217,0.5103,4135.8,4135.5,0.00273488]
[1760312253713,0.5103,4135.8,4135.5,0.43758488]
[1760312253912,0.5103,4135.8,4135.5,0.00273488]
[1760312254107,0.00243284,4135.9,4135.5,0.00273488]
[1760312254511,0.5103,4135.7,4135.6,0.5448]
[1760312254708,0.5103,4135.7,4135.6,0.97965]
[1760312255114,0.00243284,4135.9,4135.8,0.97963]
[1760312256018,40.8,4136.9,4136.7,0.43473]
[1760312256215,0.5103,4136.8,4136.5,0.43475]
[1760312256424,0.2087,4136.0,4135.9,3.2078]
[1760312256619,0.5103,4135.9,4135.5,0.43759488]
[1760312256924,0.51273824,4135.9,4135.5,0.00273488]
[1760312257416,3.2019467,4135.8,4135.5,0.00273488]
[1760312257625,0.94515,4135.6,4135.5,0.00273488]
[1760312257919,4.1470967,4135.6,4135.5,0.00273488]
[1760312259318,4.1470967,4135.6,4133.7,0.43504]
[1760312259319,0.2087,4134.0,4133.7,0.43504]
[1760312259618,41.0087,4134.0,4133.8,0.43503]
[1760312259819,0.5103,4133.9,4133.8,0.43503]
[1760312260018,41.0087,4134.0,4133.6,3.2078]
[1760312260324,3.7181,4133.7,4133.6,0.00224217]
[1760312260626,3.7181,4133.7,4133.0,3.2078]
[1760312260627,0.2087,4133.5,4133.0,3.2078]